Cogmind - Beta 15 @@@ ROGUE MODE // 2025.10.06 @ 13:15:52 Player: DietSnapple Result: Self-destructed Performance ------------- Evolutions (2) 1000 Regions Visited (7) 1400 Robots Destroyed (17) 85 Value Destroyed (290) 290 Prototype IDs (2) 40 Alien Tech Used (0) 0 Bonus (0) 0 TOTAL SCORE: 2815 Bonus ------- None Cogmind --------- Core Integrity 426/550 Matter 275/300 Energy 58/100 System Corruption 0% Temperature Cool (9) Movement Flying (40) Location -8/Materials Parts ------- > --- POWER (1) -------- (None) > --- PROPULSION (4) --- Flight Unit > --- UTILITY (4) ------ Visual Processing Unit Target Analyzer Hacking Suite > --- WEAPON (2) ------- Shock Rifle > --- INVENTORY (5) ---- Wheel Improved Terrain Scanner EM Pulse Cannon Peak State ------------ > --- POWER ------------ Ion Engine > --- PROPULSION ------- Wheel Armored Wheel Armored Wheel > --- UTILITY ---------- Large Storage Unit Hacking Suite Hacking Suite > --- WEAPON ----------- EM Pulse Gun EM Pulse Gun > --- INVENTORY -------- Wheel Wheel Compact Wheel Hover Unit Hover Unit Hover Unit Hover Unit Flight Unit Small Storage Unit Improved Terrain Scanner [Rating: 16] Favorites ----------- Power Ion Engine Engine Ion Engine Propulsion Wheel Wheel Wheel Flight Unit Flight Unit Utility Hacking Suite Storage Large Storage Unit Processor Visual Processing Unit Hackware Hacking Suite Weapon EM Pulse Gun Energy Gun EM Pulse Gun Energy Cannon Light EM Pulse Cannon Launcher Grenade Launcher Special Weapon Mining Laser Build | -11 -10 -10 -9 -9 -9 -8 -8 ------- Run | Yrd Mat Min Mat Min Exi Min Mat Slots Evolved 4 | . . . 2 . . . 2 Power . | . . . . . . . . Propulsion 2 | . . . 1 . . . 1 Utility 2 | . . . 1 . . . 1 Weapon . | . . . . . . . . Parts Attached 30 | 6 2 3 12 3 . . 4 Power 2 | 1 . . 1 . . . . Engine 2 | 1 . . 1 . . . . Core . | . . . . . . . . Reactor . | . . . . . . . . Propulsion 12 | 2 . 1 8 . . . 1 Treads . | . . . . . . . . Leg . | . . . . . . . . Wheel 7 | 2 . 1 4 . . . . Hover . | . . . . . . . . Flight 5 | . . . 4 . . . 1 Utility 6 | 1 2 . 1 1 . . 1 Device . | . . . . . . . . Storage 2 | 1 1 . . . . . . Processor 2 | . . . . 1 . . 1 Hackware 2 | . 1 . 1 . . . . Protection . | . . . . . . . . Artifact . | . . . . . . . . Weapon 10 | 2 . 2 2 2 . . 2 Energy Gun 5 | 2 . 1 1 . . . 1 Energy Cannon 2 | . . . . 1 . . 1 Ballistic Gun . | . . . . . . . . Ballistic Cannon . | . . . . . . . . Launcher 1 | . . 1 . . . . . Special Weapon 2 | . . . 1 1 . . . Impact Weapon . | . . . . . . . . Slashing Weapon . | . . . . . . . . Piercing Weapon . | . . . . . . . . Special Melee Weapon . | . . . . . . . . Unidentified Prototypes . | . . . . . . . . Parts Lost 19 | . . 2 11 . . 1 5 Power 1 | . . . 1 . . . . Propulsion 9 | . . 1 5 . . 1 2 Utility 1 | . . . . . . . 1 Weapon 8 | . . 1 5 . . . 2 Highest Loss Streak 8 | . . 2 8 . . 1 5 To Critical Strikes 1 | . . . 1 . . . . Average Backups 8 | . 9 12 10 3 4 4 2 Power . | . . . . . . . . Propulsion 6 | . 6 7 8 2 3 3 1 Utility 1 | . . 2 1 1 1 1 1 Weapon 1 | . 2 2 . . . . . Tool/Special . | . . . . . . . . Unused Backups 9 | . . 2 5 . . . 2 Power . | . . . . . . . . Propulsion 8 | . . 2 5 . . . 1 Utility 1 | . . . . . . . 1 Weapon . | . . . . . . . . Tool/Special . | . . . . . . . . Average Slot Usage (%) 92 | . 99 97 89 75 88 88 52 Engine 10 | . 14 14 10 . . . . Wheel 22 | . 28 27 27 . . . . Flight 6 | . . . 1 33 33 33 15 Storage 13 | . 23 14 10 . . . . Processor 1 | . . . . 5 11 11 10 Hackware 14 | . 4 14 22 22 22 22 18 Energy Gun 15 | . 28 12 13 . . . 2 Energy Cannon 1 | . . . . 5 11 11 3 Launcher 4 | . . 13 3 . . . . Special Weapon 1 | . . . . 9 11 11 3 Peak Build Rating 16 | 6 10 10 16 14 14 14 15 Average Rating 10 | 4 8 9 14 11 14 13 12 On Entrance 9 | . 6 10 10 9 14 14 13 Naked Turns . | . . . . . . . . Heaviest Build 34 | 14 34 30 30 5 5 5 5 Greatest Support 34 | 20 20 20 34 12 12 12 8 Greatest Overweight (x) 4 | 4 1 2 1 . . . 1 Average Overweight (x) . | 1 . 1 . . . . . Largest Inventory Capacity 15 | 8 15 15 15 5 5 5 5 Average Capacity 12 | 7 14 15 14 5 5 5 5 Most Carried 14 | 3 12 14 14 4 4 4 3 Average Carried 9 | 1 9 12 10 3 4 4 2 Final Capacity 15 | 8 15 15 5 5 5 5 5 Final Carried 12 | 3 12 12 3 4 4 4 3 Class Distribution -------------------- 59% | Mutant 24% | Hacker-Mutant 15% | Scavenger-Mutant Dominant Class ---------------- Mutant | -10/Materials Mutant | -10/Mines Hacker-Mutant | -9/Materials Scavenger-Mutant | -9/Mines Scavenger-Mutant | -9/Exiles Scavenger-Mutant | -8/Mines Hacker-Mutant | -8/Materials Resources | -11 -10 -10 -9 -9 -9 -8 -8 ----------- Run | Yrd Mat Min Mat Min Exi Min Mat Matter Collected 629 | 260 30 147 127 45 . 20 . Remotely . | . . . . . . . . Salvage Created 483 | . 191 23 269 . . . . Parts 32 | . 18 . 14 . . . . Haulers Intercepted 2 | . . . 2 . . . . Recyclers Shooed 1 | . . . 1 . . . . Parts Field Recycled . | . . . . . . . . Retrieved Matter . | . . . . . . . . Parts Self-Destructed . | . . . . . . . . Prevented . | . . . . . . . . Kills | -11 -10 -10 -9 -9 -9 -8 -8 ------- Run | Yrd Mat Min Mat Min Exi Min Mat Combat Hostiles Destroyed 19 | . 5 8 6 . . . . Melee 1 | . . . 1 . . . . Guns 9 | . 3 1 5 . . . . AOE 9 | . 2 7 . . . . . Classes Destroyed 7 | . 4 1 2 . . . . Worker 1 | . 1 . . . . . . Hauler 2 | . . . 2 . . . . Operator 3 | . 2 . 1 . . . . Swarmer 7 | . 3 . 4 . . . . Grunt 3 | . 2 . 1 . . . . Sentry 1 | . . . 1 . . . . Assembled 8 | . . 8 . . . . . Best Kill Streak 5 | . 3 5 3 . . . . Combat Bots Only 5 | . 3 5 3 . . . . Max Kills in Single Turn 2 | . 2 2 1 . . . . Gunslinging . | . . . . . . . . Exploded 2 | . 2 2 . . . . . Melee 1 | . . . 1 . . . . Uniques/NPCs Destroyed . | . . . . . . . . Combat | -11 -10 -10 -9 -9 -9 -8 -8 -------- Run | Yrd Mat Min Mat Min Exi Min Mat Hostile Shots Fired 184 | . 4 18 123 . . 13 26 Missed 59 | . 1 5 35 . . 8 10 Hits 125 | . 3 13 88 . . 5 16 Melee 1 | . . 1 . . . . . Projectile 124 | . 3 12 88 . . 5 16 Critical Strikes 1 | . . . 1 . . . . Damage Taken 1635 | . 46 226 1063 . . 41 259 Core 556 | . . 54 370 . . 8 124 Absorbed by Shields . | . . . . . . . . Core Remaining (%) 61 | 100 . 78 . . . 5 . Volleys Fired 79 | . 13 17 46 . . . 3 Largest 2 | . 2 1 2 . . . 1 Hottest 80 | . 80 40 80 . . . 50 Shots Fired 122 | . 27 18 74 . . . 3 Gun 100 | . 27 6 64 . . . 3 Cannon . | . . . . . . . . Launcher 18 | . . 12 6 . . . . Special 4 | . . . 4 . . . . Kinetic . | . . . . . . . . Thermal 4 | . . . 4 . . . . Explosive 18 | . . 12 6 . . . . Electromagnetic 100 | . 27 6 64 . . . 3 Robot Hit Streak 12 | . 3 2 12 . . . 1 Robot Miss Streak 6 | . 4 3 6 . . . 2 Penetration Max . | . . . . . . . . Secondary Targets 1 | . . . 1 . . . . Max Gunslinging Chain 1 | . . . 1 . . . . Shots Hit Robots 55 | . 11 4 39 . . . 1 Core Hits 40 | . 10 14 16 . . . . Critical Kills . | . . . . . . . . Critical Parts Destroyed . | . . . . . . . . Critical Strikes . | . . . . . . . . Melee Attacks . | . . . . . . . . Impact . | . . . . . . . . Slashing . | . . . . . . . . Piercing . | . . . . . . . . Sneak Attacks . | . . . . . . . . Combat Hostiles . | . . . . . . . . Follow-up Attacks . | . . . . . . . . Damage Inflicted 1696 | . 257 513 908 . . . 18 Guns 670 | . 164 22 466 . . . 18 Cannons . | . . . . . . . . Explosions 974 | . 93 491 390 . . . . Melee . | . . . . . . . . Ramming 47 | . . . 47 . . . . Kinetic . | . . . . . . . . Thermal 215 | . 93 . 122 . . . . Explosive 764 | . . 491 273 . . . . Electromagnetic 670 | . 164 22 466 . . . 18 Impact . | . . . . . . . . Slashing . | . . . . . . . . Piercing . | . . . . . . . . Highest Corruption 1 | . 1 1 . . . . . Average Corruption 1 | . 1 1 . . . . . Corruption Purged . | . . . . . . . . Corruption Blocked . | . . . . . . . . Effects 11 | . 8 3 . . . . . Message Errors 1 | . . 1 . . . . . Matter Fused 2 | . 1 1 . . . . . Heat Flow Errors 1 | . 1 . . . . . . Energy Discharges 3 | . 3 . . . . . . Data Loss (minor) 2 | . 2 . . . . . . Misfires 2 | . 1 1 . . . . . Overload Shots . | . . . . . . . . Overflow Damage 41 | . . 21 20 . . . . Projectiles . | . . . . . . . . Explosions 41 | . . 21 20 . . . . Melee . | . . . . . . . . Knockbacks . | . . . . . . . . Impact . | . . . . . . . . Kinetic . | . . . . . . . . Secondary . | . . . . . . . . Self-Inflicted Damage 65 | . . 28 37 . . . . Shots 3 | . . 1 2 . . . . Rammed 12 | . . . 12 . . . . Targets Rammed 12 | . . . 12 . . . . Kicked . | . . . . . . . . Crushed . | . . . . . . . . Highest Temperature 108 | . 108 15 63 . . . 4 Average Temperature 25 | . 37 10 20 . . . 4 Received Heat Transfer 343 | . . 40 204 . . . 99 Siege Activations . | . . . . . . . . Martial Activations . | . . . . . . . . Shielding Activations . | . . . . . . . . Robots Disrupted . | . . . . . . . . Combat Hostiles . | . . . . . . . . Robots Corrupted . | . . . . . . . . Combat Hostiles . | . . . . . . . . Parts Fried 6 | . . . 6 . . . . Impact Corruptions . | . . . . . . . . Robots Melted . | . . . . . . . . Combat Hostiles . | . . . . . . . . Parts Melted . | . . . . . . . . Heat Transferred 300 | . 100 . 200 . . . . Parts Sabotaged . | . . . . . . . . Parts Stolen . | . . . . . . . . Parts Stripped . | . . . . . . . . Power Chain Reactions 4 | . 2 . 2 . . . . Alert | -11 -10 -10 -9 -9 -9 -8 -8 ------- Run | Yrd Mat Min Mat Min Exi Min Mat Maximum Alert Level . | . . . . . . . . Low Security (%) 100 | 100 100 100 100 100 . 100 100 Level 1 . | . . . . . . . . Level 2 . | . . . . . . . . Level 3 . | . . . . . . . . Level 4 . | . . . . . . . . Level 5 . | . . . . . . . . High Security . | . . . . . . . . Max Security . | . . . . . . . . Peak Influence 84 | . 84 20 75 28 . 60 45 Initial 28 | . . . . 28 . . 15 Average 11 | . 15 1 18 18 . 12 10 Influence Increases 657 | . 167 43 327 . . 60 60 Destroy 0b10 Robot/C 220 | . 100 . 120 . . . . Destroy 0b10 Robot/NC 30 | . 15 . 15 . . . . Destroy Leader 44 | . 20 . 24 . . . . Successful Hack 39 | . 23 . 16 . . . . Disable Machine 30 | . . . 30 . . . . Destroy Structure 84 | . 9 43 32 . . . . Partial Spotted 15 | . . . . . . . 15 Lose Combat Pursuer 195 | . . . 90 . . 60 45 Influence Decreases 622 | . 167 43 252 67 8 20 65 Entered New Map 80 | . . . . 47 8 . 25 Time Decay 423 | . 167 33 183 20 . 10 10 Lost Part 119 | . . 10 69 . . 10 30 Squads Dispatched 3 | . 2 . 1 . . . . Investigation 1 | . 1 . . . . . . Extermination . | . . . . . . . . Reinforcement 2 | . 1 . 1 . . . . Assault . | . . . . . . . . Garrison . | . . . . . . . . Intercept . | . . . . . . . . Searches Triggered . | . . . . . . . . Construction Impeded . | . . . . . . . . Haulers Reinforced . | . . . . . . . . Active Scanning Responses . | . . . . . . . . Cargo Convoy Interrupts . | . . . . . . . . Stealth | -11 -10 -10 -9 -9 -9 -8 -8 --------- Run | Yrd Mat Min Mat Min Exi Min Mat Distress Signals 3 | . 1 . 2 . . . . Communications Jammed . | . . . . . . . . Distress Signals . | . . . . . . . . Times Spotted 52 | . 9 8 21 . . 6 8 Peak Tracking Total 7 | . 4 5 7 . . 4 6 Tactical Retreats 4 | . . . 2 . . 1 1 Traps | -11 -10 -10 -9 -9 -9 -8 -8 ------- Run | Yrd Mat Min Mat Min Exi Min Mat Traps Triggered 3 | . 2 . 1 . . . . Indirectly . | . . . . . . . . Trap Hack Attempts . | . . . . . . . . Triggered . | . . . . . . . . Disarmed . | . . . . . . . . Reprogrammed . | . . . . . . . . Reused . | . . . . . . . . Traps Extracted . | . . . . . . . . Installed . | . . . . . . . . Triggered . | . . . . . . . . Machines | -11 -10 -10 -9 -9 -9 -8 -8 ---------- Run | Yrd Mat Min Mat Min Exi Min Mat Machines Disabled 2 | . . . 2 . . . . Max in Single Turn 1 | . . . 1 . . . . Machines Repaired . | . . . . . . . . Machines Dismantled . | . . . . . . . . Machines Sabotaged . | . . . . . . . . Overloaded Fab Kills . | . . . . . . . . Hacking | -11 -10 -10 -9 -9 -9 -8 -8 --------- Run | Yrd Mat Min Mat Min Exi Min Mat Machines Accessed 10 | . 6 . 2 . 2 . . Terminals 8 | . 6 . 2 . . . . Fabricators . | . . . . . . . . Repair Stations . | . . . . . . . . Recycling Units . | . . . . . . . . Scanalyzers . | . . . . . . . . Garrison Access . | . . . . . . . . Total Hacks 29 | . 17 . 10 . 2 . . Successful 25 | . 13 . 10 . 2 . . Failed 4 | . 4 . . . . . . Catastrophic 2 | . 2 . . . . . . Database Lockouts . | . . . . . . . . Manual 16 | . 9 . 7 . . . . Terminals 27 | . 17 . 10 . . . . Fabricators . | . . . . . . . . Repair Stations . | . . . . . . . . Recycling Units . | . . . . . . . . Scanalyzers . | . . . . . . . . Garrison Access . | . . . . . . . . Terminal Hacks 17 | . 10 . 5 . 2 . . Record 6 | . 2 . 2 . 2 . . Robot Analysis 1 | . 1 . . . . . . Prototype ID Bank 1 | . 1 . . . . . . Branch Access Points 2 | . 2 . . . . . . Emergency Access Points 1 | . 1 . . . . . . Dispatch Records 1 | . 1 . . . . . . Security Status 1 | . 1 . . . . . . Registered Components 1 | . . . 1 . . . . Registered Prototypes 1 | . . . 1 . . . . Zone Layout 2 | . 1 . 1 . . . . Fabricator Hacks . | . . . . . . . . Repair Station Hacks . | . . . . . . . . Recycling Unit Hacks . | . . . . . . . . Scanalyzer . | . . . . . . . . Garrison Access Hacks . | . . . . . . . . Unauthorized Hacks 8 | . 3 . 5 . . . . Terminals 8 | . 3 . 5 . . . . Track 2 | . . . 2 . . . . Botnet 4 | . 2 . 2 . . . . Operators 2 | . 1 . 1 . . . . Fabricators . | . . . . . . . . Repair Stations . | . . . . . . . . Recycling Units . | . . . . . . . . Scanalyzers . | . . . . . . . . Garrison Access . | . . . . . . . . Data Cores Recovered 1 | . . . 1 . . . . Used . | . . . . . . . . Hacking Detections 6 | . 4 . 2 . . . . Full Trace Events 1 | . . . 1 . . . . Feedback Events . | . . . . . . . . Feedback Blocked . | . . . . . . . . Robot Schematics Acquired . | . . . . . . . . Robots Built . | . . . . . . . . Authchips . | . . . . . . . . Time . | . . . . . . . . Total Robot Build Rating . | . . . . . . . . Part Schematics Acquired . | . . . . . . . . Parts Built . | . . . . . . . . Authchips . | . . . . . . . . Time . | . . . . . . . . Total Part Build Rating . | . . . . . . . . Parts Repaired . | . . . . . . . . Time . | . . . . . . . . Parts Recycled . | . . . . . . . . Recycled Matter . | . . . . . . . . Retrieved Matter . | . . . . . . . . Retrieved Components . | . . . . . . . . Parts Scanalyzed . | . . . . . . . . Part Schematics Acquired . | . . . . . . . . Parts Damaged . | . . . . . . . . Bothacking | -11 -10 -10 -9 -9 -9 -8 -8 ------------ Run | Yrd Mat Min Mat Min Exi Min Mat Used RIF Installer . | . . . . . . . . Robots Hacked . | . . . . . . . . Non-combat . | . . . . . . . . Combat . | . . . . . . . . Robot Hacks Applied . | . . . . . . . . Relay Couplers Released . | . . . . . . . . Fabnet Peak Effective % . | . . . . . . . . Robots Rewired . | . . . . . . . . Allies Hacked . | . . . . . . . . Hacks Repelled . | . . . . . . . . Allies | -11 -10 -10 -9 -9 -9 -8 -8 -------- Run | Yrd Mat Min Mat Min Exi Min Mat Total Allies 1 | . . . . 1 . . . Largest Group 1 | . . . . 1 . . . Highest-Rated Group 31 | . . . . 31 . . . Highest-Rated Ally 31 | . . . . 31 . . . Total Orders . | . . . . . . . . Ally Attacks . | . . . . . . . . Total Damage . | . . . . . . . . Kills . | . . . . . . . . Allies Corrupted . | . . . . . . . . Allies Melted . | . . . . . . . . Intel | -11 -10 -10 -9 -9 -9 -8 -8 ------- Run | Yrd Mat Min Mat Min Exi Min Mat Active Infowar (turns) 2 | . . . . 2 . . . Optics 2 | . . . . 2 . . . Robot Analysis Total 1 | . 1 . . . . . . Derelict Logs Recovered 1 | . . 1 . . . . . Drone Launches . | . . . . . . . . Drone Recoveries . | . . . . . . . . Exploration | -11 -10 -10 -9 -9 -9 -8 -8 ------------- Run | Yrd Mat Min Mat Min Exi Min Mat Turns Passed 2585 | 128 819 584 607 54 203 119 71 Spaces Moved 2788 | 91 793 177 494 139 596 350 148 Core 39 | 39 . . . . . . . Treads . | . . . . . . . . Legs . | . . . . . . . . Wheels 1442 | 52 793 177 420 . . . . Hover . | . . . . . . . . Flight 1307 | . . . 74 139 596 350 148 Fastest Speed 34 | 50 80 95 34 34 34 34 34 Average Speed 66 | 127 94 95 81 34 34 34 39 Slowest Speed 250 | 250 95 110 105 34 34 37 120 Overloaded Moves . | . . . . . . . . Propulsion Burnouts . | . . . . . . . . Robots Hopped 7 | . . . 1 . . 4 2 Potential Cave-ins . | . . . . . . . . Cave-ins Triggered . | . . . . . . . . Exploration Rate (%) 46 | 7 93 32 34 29 90 69 15 Regions Visited 7 Branch Regions 4 Pre-discovered Areas . | . . . . . . . . Known Exits Taken 2 | . 1 . 1 . . . . Unknown Exits Taken 5 | 1 . 1 . 1 1 1 . Scrap Searched 2 | . . . . 1 . 1 . Spaces Dug . | . . . . . . . . Terrain Destroyed 113 | . 7 75 31 . . . . Melee . | . . . . . . . . Projectile . | . . . . . . . . AOE 113 | . 7 75 31 . . . . Terrain Rammed . | . . . . . . . . Walls Destroyed . | . . . . . . . . Machines Disabled . | . . . . . . . . Actions | -11 -10 -10 -9 -9 -9 -8 -8 --------- Run | Yrd Mat Min Mat Min Exi Min Mat Total 3369 | 99 835 575 621 144 595 345 155 Wait 442 | . 18 373 51 . . . . Move 2767 | 90 792 176 491 138 595 341 144 Hop 7 | . . . 1 . . 4 2 Pick Up 23 | 3 9 3 5 3 . . . Fast Attach 13 | 6 1 1 1 1 . . 3 Attach 15 | . 1 2 9 2 . . 1 Detach 3 | . 1 1 . . . . 1 Swap 3 | . . . 3 . . . . Drop 5 | . . 2 2 . . . 1 Fire 79 | . 13 17 46 . . . 3 Melee . | . . . . . . . . Ram 12 | . . . 12 . . . . Kick . | . . . . . . . . Crush . | . . . . . . . . Escape Stasis . | . . . . . . . . Rewire . | . . . . . . . . Trap . | . . . . . . . . Miscellaneous . | . . . . . . . . Route ------- -11/Scrapyard -10/Materials (discovered 4 exits: *Mat x3 / *Min) -10/Mines -9/Materials (discovered 3 exits: *Min x2 / [*Sto]) -9/Mines -9/Exiles -8/Mines -8/Materials History --------- Turn | Location | Event 19 | -11/Scrapyard | Discovered new exit (range 15) 129 | -11/Scrapyard | Entered Materials 130 | -10/Materials | Met a group of wandering Federalists 207 | -10/Materials | Discovered new exit (range 15) 224 | -10/Materials | Lost 4 allies 307 | -10/Materials | Discovered new exit (range 9) 316 | -10/Materials | Build established: Mutant 500 | -10/Materials | Discovered new exit (range 16) 657 | -10/Materials | Discovered new exit (range 13) 716 | -10/Materials | Identified exit to Mines 948 | -10/Materials | Entered Mines 949 | -10/Mines | Assembled infested the area 1471 | -10/Mines | Discovered new exit (range 14) 1475 | -10/Mines | Found a hidden stash of uninstalled traps 1532 | -10/Mines | Entered Materials 1532 | -9/Materials | Evolved 2 slots: Propulsion x1, Utility x1 1533 | -9/Materials | Identified exit to Mines 1839 | -9/Materials | Build established: Hacker-Mutant 1937 | -9/Materials | Discovered new exit (range 7) 2094 | -9/Materials | Core integrity fell below 50% 2111 | -9/Materials | Core integrity fell below 20% 2139 | -9/Materials | Entered Mines 2142 | -9/Mines | Received a Mining Laser from a helpful Derelict 2143 | -9/Mines | Lost 8 parts (1p4n3w) 2161 | -9/Mines | Met a Derelict bent on vengeance 2175 | -9/Mines | A weapon hastily lodged in a ceiling crevice suddenly fell to the ground 2189 | -9/Mines | Deemed a non-threat by the Exiles lab entrance 2190 | -9/Mines | Discovered new exit (range 5) 2193 | -9/Mines | Entered Exiles 2193 | -9/Exiles | Found Exiles lab abandoned 2389 | -9/Exiles | Discovered new exit (range 15) 2396 | -9/Exiles | Entered Mines 2417 | -8/Mines | Build established: Scavenger-Mutant 2505 | -8/Mines | Discovered new exit (range 13) 2515 | -8/Mines | Entered Materials 2515 | -8/Materials | Evolved 2 slots: Propulsion x1, Utility x1 2580 | -8/Materials | Lost 5 parts (3n2w) 2586 | -8/Materials | Self-destructed Last Messages --------------- 02438_ Found Target Analyzer. 02438_ Found 38 Matter. 02438_ Acquired 20 matter. 02440_ T-07 Excavator is excavating. 02505_ EXIT=FOUND 02513_ Flight Unit destroyed. 02515_ S-10 Pest destroyed. [Achievement: Close Call] PARAMETERS=PROPULSION+1,UTILITY+1 LOCATION=UNKNOWN GOAL=ESCAPE 02518_ Dropped Corrupted Flight Unit. 02529_ Flight Unit destroyed. 02534_ Mining Laser destroyed. 02537_ Lgt. EM Pulse Cannon destroyed. 02549_ VTOL Module destroyed. 02566_ Acquired EM Pulse Cannon. 02569_ Acquired Shock Rifle. 02571_ Acquired Target Analyzer. 02583_ Hacking Suite destroyed. Map ----- +----------------------------------------------------+ | ??????????????????????????????????????? ?# # | | ?????????????????????????????????????" """ ## # | | ???????????????????????????????????"""""""" # # | | ?????????????????????????????????? """"" ## + | | ????????????????????????????????? ## # | | ????????????????????????????????# ? ## # | | ????????????????????????????????#???? ## # | | ????????????###############+################# | | ??????????? | | ??????????? | | ??????????? | | ??????????????????###### Y##############+### | | ???????????????????????# #??????????# ## # | | ???????????????????????# #??????????# ## # | | ???????????????????????# Y#??????????# ## # | | ???????????????????????# #??????????# ## # | | ???????????????????????# #??????????# ## # | | ???????????????????????# ########???# ## # | | ???????????????????????# # #???# """ #? # | | ???????????????????????#g g# #???# """ #? # | | ???????????????????????# g # #???# """ #? # | | ???????????????????????# + #???# """ #? # | | ???????????????????????# # #???# """ #? # | | ???????????????????????# # #???# #? # | | ???????????????????????# ########???#######? ? | | ????????????????????#### @ #??###????????????????? | | ???????????????????##! #?? #????????????????? | | ???????????????????#! #? #????????????????? | | ???????????????????#! #? #????????????????? | | ???????????????????#! # #????????????????? | | ???????????????????#! # #????????????????? | | ???????????????????##! + #????????????????? | | ????????????????????#####+#######????????????????? | | ????????????????????# ]!#??????????????????? | | ????????????????????# #??????????????????? | | ????????????????????# ]! #??????????????????? | | ????????????????????# #??????????????????? | | ????????????????????# [ #??????????????????? | | ????????????????????# #??????????????????? | | ????????????????????# ] #??????????????????? | | ????????????????????# ! #??????????????????? | | ????????????????????###########??????????????????? | | ?????????????????????????????????????????????????? | | ?????????????????????????????????????????????????? | | ?????????????????????????????????????????????????? | | ?????????????????????????????????????????????????? | | ?????????????????????????????????????????????????? | | ?????????????????????????????????????????????????? | | ?????????????????????????????????????????????????? | | ?????????????????????????????????????????????????? | +----------------------------------------------------+ Best States ------------- Heat Dissipation 31 Energy Generation 10 Energy Capacity 250 Matter Stores 300 Matter Capacity 300 Sight Range 18 Terrain Scan Density 10 Evasion (%) 63 Target Analysis 5 Offensive Hacking 20 Item Schematics ----------------- None Robot Schematics ------------------ None Fabricated ------------ Nothing Repaired ---------- Nothing Alien Tech Used ----------------- None Achievements -------------- Close Call Maybe Next Time I'll Detach My Launcher root@ Challenges ------------ None Game ------ Seed DispersalMultinovaGenerator Manual? 0 Play Time 00:27:41 Cumulative 12.7 hours Start 2025.10.06 @ 12:48:50 End 2025.10.06 @ 13:15:52 Sessions 1 Manual Loads 0 Difficulty Rogue Special Mode None Game No. 39 Rogue 32 Adventurer 7 Explorer 0 Win Type - Total 0 Types 0/0/0/0/0/0/0/0/0/0 Lore% 3 Gallery% 15 Achievement% 16 Wizard Run 0 Options --------- Layout 1 ASCII 0 Keyboard 1 Movement Vi Keybinds 0 Fullscreen 1 Font 24/Smallcaps Map View 76x35 Zoom Use 0% Tactical HUD 1 Map Filters NONE Filters NONE Steam 1 RUN: 06e10ffc-ca05-4edb-a6cd-0425d26bba8b